[Event "Dutch Internet Championship Final"]
[Site "playchess.com #038132"]
[Date "2011.06.18"]
[Round "3.3"]
[White "Jan Smeets"]
[Black "Ivan Sokolov"]
[Result "1-0"]
[ECO "C45"]
[WhiteElo "2788"]
[BlackElo "2459"]
[PlyCount "107"]
[EventDate "2011.06.18"]
[EventType "match (blitz)"]
[TimeControl "180+3"]

1. e4 {[%emt 0:00:02]} e5 {[%emt 0:00:19]} 2. Nf3 {[%emt 0:00:01]} Nc6 {[%emt
0:00:01]} 3. d4 {[%emt 0:00:02]} exd4 {[%emt 0:00:02]} 4. Nxd4 {[%emt 0:00:01]}
Nge7 {[%emt 0:00:01]} 5. Be3 {[%emt 0:00:10]} Nxd4 {[%emt 0:00:02]} 6. Qxd4 {
[%emt 0:00:00]} Nc6 {[%emt 0:00:02]} 7. Qd2 {[%emt 0:00:01]} Bb4 {[%emt 0:00:
02]} 8. Nc3 {[%emt 0:00:03]} O-O {[%emt 0:00:02]} 9. a3 {[%emt 0:00:01]} Ba5 {
[%emt 0:00:01]} 10. Bd3 {[%emt 0:00:27]} d6 {[%emt 0:00:03]} 11. O-O-O {[%emt
0:00:13]} Ne5 {[%emt 0:00:06]} 12. h4 {[%emt 0:00:09]} Be6 {[%emt 0:00:07]} 13.
h5 {[%emt 0:00:01]} b5 {[%emt 0:00:05]} 14. h6 {[%emt 0:00:25]} g6 {[%emt 0:00:
03]} 15. Bxb5 {[%emt 0:00:37]} Rb8 {[%emt 0:00:03]} 16. b4 {[%emt 0:00:01]} c5
{[%emt 0:00:15]} 17. bxa5 {[%emt 0:00:54]} Qxa5 {[%emt 0:00:05]} 18. a4 {[%emt
0:00:01]} a6 {[%emt 0:00:08]} 19. Nd5 {[%emt 0:00:25]} Qxd2+ {[%emt 0:00:04]}
20. Rxd2 {[%emt 0:00:00]} Bxd5 {[%emt 0:00:15]} 21. Rxd5 {[%emt 0:00:01]} axb5
{[%emt 0:00:02]} 22. Rxd6 {[%emt 0:00:13]} Nc4 {[%emt 0:00:06]} 23. Ra6 {[%emt
0:00:02]} Nxe3 {[%emt 0:00:02]} 24. fxe3 {[%emt 0:00:01]} Rfe8 {[%emt 0:00:07]}
25. axb5 {[%emt 0:00:10]} Rxb5 {[%emt 0:00:02]} 26. Ra4 {[%emt 0:00:09]} f6 {
[%emt 0:00:33] '} 27. Rd1 {[%emt 0:00:02]} Kf7 {[%emt 0:00:17]} 28. Rd7+ {
[%emt 0:00:02]} Re7 {[%emt 0:00:02]} 29. Rxe7+ {[%emt 0:00:01]} Kxe7 {[%emt 0:
00:01]} 30. Ra7+ {[%emt 0:00:00]} Ke6 {[%emt 0:00:06]} 31. Rxh7 {[%emt 0:00:05]
} c4 {[%emt 0:00:01]} 32. g4 {[%emt 0:00:06]} Ra5 {[%emt 0:00:02]} 33. Kb2 {
[%emt 0:00:03]} Ra8 {[%emt 0:00:14]} 34. Kc3 {[%emt 0:00:03]} Ke5 {[%emt 0:00:
04]} 35. Re7+ {[%emt 0:00:01]} Kd6 {[%emt 0:00:01]} 36. Rg7 {[%emt 0:00:01]} g5
{[%emt 0:00:03]} 37. Kd4 {[%emt 0:00:03]} Rh8 {[%emt 0:00:09]} 38. h7 {[%emt 0:
00:01]} c3 {[%emt 0:00:01]} 39. Kxc3 {[%emt 0:00:02]} Ke5 {[%emt 0:00:01]} 40.
Kd3 {[%emt 0:00:00]} Rd8+ {[%emt 0:00:01]} 41. Ke2 {[%emt 0:00:02]} Rh8 {[%emt
0:00:01]} 42. Kf3 {[%emt 0:00:02]} Ke6 {[%emt 0:00:03]} 43. Ra7 {[%emt 0:00:03]
} Kd6 {[%emt 0:00:03]} 44. Ke2 {[%emt 0:00:03]} Ke5 {[%emt 0:00:02]} 45. Re7+ {
[%emt 0:00:02]} Kd6 {[%emt 0:00:02]} 46. Rb7 {[%emt 0:00:04]} Ke5 {[%emt 0:00:
01]} 47. Kf3 {[%emt 0:00:03]} Ke6 {[%emt 0:00:04]} 48. c4 {[%emt 0:00:01]} Kd6
{[%emt 0:00:01]} 49. Ke2 {[%emt 0:00:02]} Ke5 {[%emt 0:00:02]} 50. Kf3 {[%emt
0:00:01]} Kd6 {[%emt 0:00:01]} 51. Rg7 {[%emt 0:00:00]} Kc5 {[%emt 0:00:03]}
52. e5 {[%emt 0:00:03]} fxe5 {[%emt 0:00:04]} 53. Ke4 {[%emt 0:00:01]} Kd6 {
[%emt 0:00:06]} 54. Kf5 {[%emt 0:00:04] Ivan Sokolov resigns  (Lag: Av=0.35s,
max=1.3s)} 1-0

[Event "Dutch Internet Championship Final"]
[Site "playchess.com #038132"]
[Date "2011.06.18"]
[Round "3.3"]
[White "kingloek"]
[Black "Christov"]
[Result "1-0"]
[ECO "E94"]
[WhiteElo "2871"]
[BlackElo "2527"]
[PlyCount "161"]
[EventDate "2011.06.18"]
[EventType "match (blitz)"]
[TimeControl "180+3"]

1. d4 {[%emt 0:00:02]} Nf6 {[%emt 0:00:01]} 2. c4 {[%emt 0:00:01]} g6 {[%emt 0:
00:00]} 3. Nc3 {[%emt 0:00:00]} Bg7 {[%emt 0:00:00]} 4. e4 {[%emt 0:00:00]} d6
{[%emt 0:00:00]} 5. Nf3 {[%emt 0:00:00]} O-O {[%emt 0:00:00]} 6. Be2 {[%emt 0:
00:00]} e5 {[%emt 0:00:02]} 7. O-O {[%emt 0:00:01]} Na6 {[%emt 0:00:01]} 8. Re1
{[%emt 0:00:01]} c6 {[%emt 0:00:13]} 9. Be3 {[%emt 0:00:03]} Ng4 {[%emt 0:00:
05]} 10. Bg5 {[%emt 0:00:01]} f6 {[%emt 0:00:02]} 11. Bc1 {[%emt 0:00:02]} exd4
{[%emt 0:00:14]} 12. Nxd4 {[%emt 0:00:02]} Ne5 {[%emt 0:00:02]} 13. f4 {[%emt
0:00:08]} Nf7 {[%emt 0:00:02]} 14. Bf3 {[%emt 0:00:06]} Nc5 {[%emt 0:00:03]}
15. Be3 {[%emt 0:00:12]} a5 {[%emt 0:00:03]} 16. Qd2 {[%emt 0:00:05]} Qe7 {
[%emt 0:00:06]} 17. Rad1 {[%emt 0:00:03]} Bd7 {[%emt 0:00:06]} 18. Bf2 {[%emt
0:00:05]} Rfe8 {[%emt 0:00:11]} 19. b3 {[%emt 0:00:06]} a4 {[%emt 0:00:18]} 20.
b4 {[%emt 0:00:04]} Na6 {[%emt 0:00:07]} 21. a3 {[%emt 0:00:13]} Nc7 {[%emt 0:
00:03]} 22. Nc2 {[%emt 0:00:28]} Qf8 {[%emt 0:00:12]} 23. Ne3 {[%emt 0:00:08]}
Ne6 {[%emt 0:00:14]} 24. g3 {[%emt 0:00:02]} Nc7 {[%emt 0:00:32]} 25. Qc2 {
[%emt 0:00:06]} b5 {[%emt 0:00:09]} 26. cxb5 {[%emt 0:00:03]} Nxb5 {[%emt 0:00:
02]} 27. Nxb5 {[%emt 0:00:06]} cxb5 {[%emt 0:00:01]} 28. Qc7 {[%emt 0:00:17]}
Be6 {[%emt 0:00:07]} 29. Rc1 {[%emt 0:00:13]} Rab8 {[%emt 0:00:08]} 30. Red1 {
[%emt 0:00:09]} Bb3 {[%emt 0:00:06]} 31. Re1 {[%emt 0:00:04]} Rec8 {[%emt 0:00:
11]} 32. Qa7 {[%emt 0:00:11]} Ra8 {[%emt 0:00:07]} 33. Qd7 {[%emt 0:00:02]}
Rab8 {[%emt 0:00:05]} 34. Bg4 {[%emt 0:00:29]} Rd8 {[%emt 0:00:04]} 35. Qa7 {
[%emt 0:00:09]} Nh6 {[%emt 0:00:02]} 36. Bf3 {[%emt 0:00:03]} Ra8 {[%emt 0:00:
07]} 37. Qc7 {[%emt 0:00:03]} Rac8 {[%emt 0:00:03]} 38. Qb7 {[%emt 0:00:08]}
Rb8 {[%emt 0:00:01]} 39. Qa6 {[%emt 0:00:01]} Nf7 {[%emt 0:00:06]} 40. Rc7 {
[%emt 0:00:06]} Qe8 {[%emt 0:00:11]} 41. Qc6 {[%emt 0:00:06]} Qxc6 {[%emt 0:00:
04]} 42. Rxc6 {[%emt 0:00:01]} Rd7 {[%emt 0:00:04]} 43. Rec1 {[%emt 0:00:02]}
Nd8 {[%emt 0:00:01]} 44. R6c3 {[%emt 0:00:08]} f5 {[%emt 0:00:03]} 45. Rd3 {
[%emt 0:00:03]} fxe4 {[%emt 0:00:02]} 46. Bxe4 {[%emt 0:00:01]} Ne6 {[%emt 0:
00:01]} 47. Bd5 {[%emt 0:00:08]} Re8 {[%emt 0:00:09]} 48. Kg2 {[%emt 0:00:09]}
Bxd5+ {[%emt 0:00:07]} 49. Nxd5 {[%emt 0:00:01]} Kf7 {[%emt 0:00:03]} 50. Rc6 {
[%emt 0:00:02]} Rb8 {[%emt 0:00:10]} 51. h3 {[%emt 0:00:04]} Nd8 {[%emt 0:00:
03]} 52. Rb6 {[%emt 0:00:10]} Rbb7 {[%emt 0:00:07]} 53. Kf3 {[%emt 0:00:05]}
Bf8 {[%emt 0:00:02]} 54. Ra6 {[%emt 0:00:04]} Ne6 {[%emt 0:00:05]} 55. g4 {
[%emt 0:00:04]} Rd8 {[%emt 0:00:02]} 56. Rc6 {[%emt 0:00:02]} Rbb8 {[%emt 0:00:
04]} 57. Rdc3 {[%emt 0:00:04]} Rd7 {[%emt 0:00:04]} 58. Rc1 {[%emt 0:00:03]}
Rdd8 {[%emt 0:00:08]} 59. Be3 {[%emt 0:00:06]} Rb7 {[%emt 0:00:01]} 60. f5 {
[%emt 0:00:04]} gxf5 {[%emt 0:00:01]} 61. gxf5 {[%emt 0:00:01]} Ng7 {[%emt 0:
00:00]} 62. Rc7+ {[%emt 0:00:01]} Rd7 {[%emt 0:00:01]} 63. Rxd7+ {[%emt 0:00:
08]} Rxd7 {[%emt 0:00:02]} 64. Ke4 {[%emt 0:00:01]} Nh5 {[%emt 0:00:05]} 65.
Bg5 {[%emt 0:00:03]} Bg7 {[%emt 0:00:02]} 66. Rc7 {[%emt 0:00:05]} Ng3+ {[%emt
0:00:07]} 67. Kf4 {[%emt 0:00:16]} Be5+ {[%emt 0:00:02]} 68. Kf3 {[%emt 0:00:
09]} Rxc7 {[%emt 0:00:08]} 69. Nxc7 {[%emt 0:00:01]} Nxf5 {[%emt 0:00:01]} 70.
Nxb5 {[%emt 0:00:01]} Ke6 {[%emt 0:00:04]} 71. Ke4 {[%emt 0:00:07]} d5+ {[%emt
0:00:03]} 72. Kd3 {[%emt 0:00:01]} Nd6 {[%emt 0:00:10]} 73. Nc7+ {[%emt 0:00:
05]} Kf5 {[%emt 0:00:01]} 74. Bc1 {[%emt 0:00:03]} Ne4 {[%emt 0:00:06]} 75.
Nxd5 {[%emt 0:00:03]} Nf2+ {[%emt 0:00:01]} 76. Kc4 {[%emt 0:00:01]} Nxh3 {
[%emt 0:00:00]} 77. b5 {[%emt 0:00:02]} h5 {[%emt 0:00:02]} 78. b6 {[%emt 0:00:
03]} h4 {[%emt 0:00:01]} 79. b7 {[%emt 0:00:05]} Nf2 {[%emt 0:00:03]} 80. Bf4 {
[%emt 0:00:04]} Ng4 {[%emt 0:00:10]} 81. Kb5 {[%emt 0:00:06] Christov geeft op
(Lag: Av=0.60s, max=4.2s)} 1-0

[Event "Dutch Internet Championship Final"]
[Site "playchess.com #038132"]
[Date "2011.06.18"]
[Round "3.4"]
[White "Christov"]
[Black "kingloek"]
[Result "0-1"]
[ECO "B85"]
[WhiteElo "2523"]
[BlackElo "2875"]
[PlyCount "92"]
[EventDate "2011.06.18"]
[EventType "match (blitz)"]
[TimeControl "180+3"]

1. e4 {[%emt 0:00:03]} c5 {[%emt 0:00:01]} 2. Nf3 {[%emt 0:00:01]} e6 {[%emt 0:
00:01]} 3. Nc3 {[%emt 0:00:03]} d6 {[%emt 0:00:02]} 4. d4 {[%emt 0:00:01]} cxd4
{[%emt 0:00:01]} 5. Nxd4 {[%emt 0:00:00]} Nf6 {[%emt 0:00:01]} 6. Be2 {[%emt 0:
00:02]} Be7 {[%emt 0:00:04]} 7. O-O {[%emt 0:00:01]} O-O {[%emt 0:00:01]} 8. f4
{[%emt 0:00:06]} a6 {[%emt 0:00:03]} 9. g4 {[%emt 0:00:03]} Nc6 {[%emt 0:00:12]
} 10. g5 {[%emt 0:00:05]} Nd7 {[%emt 0:00:01]} 11. Be3 {[%emt 0:00:07]} Nxd4 {
[%emt 0:00:05]} 12. Qxd4 {[%emt 0:00:02]} e5 {[%emt 0:00:02]} 13. Qd2 {[%emt 0:
00:02]} exf4 {[%emt 0:00:04]} 14. Bxf4 {[%emt 0:00:01]} Ne5 {[%emt 0:00:06]}
15. Nd5 {[%emt 0:00:01]} Be6 {[%emt 0:00:04]} 16. Nxe7+ {[%emt 0:00:29]} Qxe7 {
[%emt 0:00:02]} 17. b3 {[%emt 0:00:00]} Rfd8 {[%emt 0:00:07]} 18. c4 {[%emt 0:
00:03]} Qc7 {[%emt 0:00:20]} 19. Rad1 {[%emt 0:00:04]} b5 {[%emt 0:00:11]} 20.
cxb5 {[%emt 0:00:06]} axb5 {[%emt 0:00:01]} 21. Rf2 {[%emt 0:00:04]} Qb6 {
[%emt 0:00:28]} 22. Be3 {[%emt 0:00:12]} Qb7 {[%emt 0:00:01]} 23. Rf4 {[%emt 0:
00:12]} d5 {[%emt 0:00:15]} 24. exd5 {[%emt 0:00:16]} Rxd5 {[%emt 0:00:08]} 25.
Rd4 {[%emt 0:00:03]} Rxd4 {[%emt 0:00:38]} 26. Qxd4 {[%emt 0:00:03]} Ng6 {
[%emt 0:00:01]} 27. Qd8+ {[%emt 0:00:12]} Rxd8 {[%emt 0:00:13]} 28. Rxd8+ {
[%emt 0:00:02]} Nf8 {[%emt 0:00:01]} 29. Bc5 {[%emt 0:00:01]} h6 {[%emt 0:00:
30]} 30. Rxf8+ {[%emt 0:00:07]} Kh7 {[%emt 0:00:02]} 31. Bd3+ {[%emt 0:00:01]}
Bf5 {[%emt 0:00:18]} 32. Bxf5+ {[%emt 0:00:03]} g6 {[%emt 0:00:01]} 33. Bd4 {
[%emt 0:00:03]} gxf5 {[%emt 0:00:03]} 34. Rh8+ {[%emt 0:00:17]} Kg6 {[%emt 0:
00:01]} 35. Rg8+ {[%emt 0:00:02]} Kh5 {[%emt 0:00:04]} 36. gxh6 {[%emt 0:00:01]
} Kxh6 {[%emt 0:00:03]} 37. Be3+ {[%emt 0:00:33]} Kh7 {[%emt 0:00:03]} 38. Rg5
{[%emt 0:00:25]} Qe4 {[%emt 0:00:03]} 39. Kf2 {[%emt 0:00:01]} f4 {[%emt 0:00:
05]} 40. Bd2 {[%emt 0:00:06]} f5 {[%emt 0:00:12]} 41. Rh5+ {[%emt 0:00:05]} Kg6
{[%emt 0:00:02]} 42. Rh4 {[%emt 0:00:04]} Qd4+ {[%emt 0:00:05]} 43. Ke1 {[%emt
0:00:04]} Qg1+ {[%emt 0:00:02]} 44. Ke2 {[%emt 0:00:01]} Qg2+ {[%emt 0:00:01]}
45. Ke1 {[%emt 0:00:03]} f3 {[%emt 0:00:01]} 46. Rf4 {[%emt 0:00:02]} Qe2# {
[%emt 0:00:02] (Lag: Av=0.41s, max=1.1s)} 0-1

[Event "Dutch Internet Championship Final"]
[Site "playchess.com #038132"]
[Date "2011.06.18"]
[Round "3.4"]
[White "Ivan Sokolov"]
[Black "Jan Smeets"]
[Result "1/2-1/2"]
[ECO "A01"]
[WhiteElo "2454"]
[BlackElo "2792"]
[PlyCount "98"]
[EventDate "2011.06.18"]
[EventType "match (blitz)"]
[TimeControl "180+3"]

1. b3 {[%emt 0:00:01]} d5 {[%emt 0:00:01]} 2. Bb2 {[%emt 0:00:01]} c5 {[%emt 0:
00:01]} 3. e3 {[%emt 0:00:01]} a6 {[%emt 0:00:01]} 4. f4 {[%emt 0:00:04]} Nc6 {
[%emt 0:00:01]} 5. d3 {[%emt 0:00:03]} Nf6 {[%emt 0:00:05]} 6. Nd2 {[%emt 0:00:
01]} g6 {[%emt 0:00:14]} 7. Ngf3 {[%emt 0:00:04]} Bg7 {[%emt 0:00:02]} 8. Be2 {
[%emt 0:00:10]} O-O {[%emt 0:00:06]} 9. Ne5 {[%emt 0:00:01]} Nxe5 {[%emt 0:00:
20]} 10. Bxe5 {[%emt 0:00:02]} Nd7 {[%emt 0:00:02]} 11. Bxg7 {[%emt 0:00:02]}
Kxg7 {[%emt 0:00:00]} 12. Nf3 {[%emt 0:00:06]} Qc7 {[%emt 0:00:06]} 13. d4 {
[%emt 0:00:05]} cxd4 {[%emt 0:00:14]} 14. Qxd4+ {[%emt 0:00:02]} Nf6 {[%emt 0:
00:01]} 15. Rc1 {[%emt 0:00:02]} b5 {[%emt 0:00:10]} 16. O-O {[%emt 0:00:03]}
Bg4 {[%emt 0:00:04]} 17. h3 {[%emt 0:00:08]} Bxf3 {[%emt 0:00:07]} 18. Bxf3 {
[%emt 0:00:01]} Rac8 {[%emt 0:00:01]} 19. Rfd1 {[%emt 0:00:35]} Rfd8 {[%emt 0:
00:24]} 20. c3 {[%emt 0:00:06]} Rd6 {[%emt 0:00:15]} 21. Qe5 {[%emt 0:00:16]}
Rc6 {[%emt 0:00:20]} 22. Rxd5 {[%emt 0:00:39]} Rxc3 {[%emt 0:00:31]} 23. Rxc3 {
[%emt 0:00:03]} Qxc3 {[%emt 0:00:02]} 24. Rd1 {[%emt 0:00:11]} Rc7 {[%emt 0:00:
13]} 25. Qxc3 {[%emt 0:00:13]} Rxc3 {[%emt 0:00:01]} 26. e4 {[%emt 0:00:01]}
Rc2 {[%emt 0:00:20]} 27. e5 {[%emt 0:00:02]} Nh5 {[%emt 0:00:02]} 28. Bxh5 {
[%emt 0:00:08]} gxh5 {[%emt 0:00:01]} 29. Rd7 {[%emt 0:00:07]} e6 {[%emt 0:00:
04]} 30. f5 {[%emt 0:00:21]} exf5 {[%emt 0:00:08]} 31. e6 {[%emt 0:00:01]} Rxa2
{[%emt 0:00:02]} 32. Rxf7+ {[%emt 0:00:08]} Kg6 {[%emt 0:00:02]} 33. Ra7 {
[%emt 0:00:12]} Kf6 {[%emt 0:00:21]} 34. e7 {[%emt 0:00:05]} Kf7 {[%emt 0:00:
01]} 35. b4 {[%emt 0:00:03]} h4 {[%emt 0:00:03]} 36. Kf1 {[%emt 0:00:05]} Ke8 {
[%emt 0:00:07]} 37. Kg1 {[%emt 0:00:02]} h5 {[%emt 0:00:08]} 38. Kf1 {[%emt 0:
00:02]} Kf7 {[%emt 0:00:01]} 39. Kg1 {[%emt 0:00:01]} Re2 {[%emt 0:00:04]} 40.
Rxa6 {[%emt 0:00:03]} Rxe7 {[%emt 0:00:04]} 41. Rb6 {[%emt 0:00:02]} Re5 {
[%emt 0:00:01]} 42. Kf2 {[%emt 0:00:01]} Kg7 {[%emt 0:00:05]} 43. Kf3 {[%emt 0:
00:01]} Kf7 {[%emt 0:00:01]} 44. Kf4 {[%emt 0:00:08]} Re4+ {[%emt 0:00:04]} 45.
Kxf5 {[%emt 0:00:02]} Rxb4 {[%emt 0:00:01]} 46. Rb7+ {[%emt 0:00:01]} Kf8 {
[%emt 0:00:02]} 47. Kg5 {[%emt 0:00:10]} Rb2 {[%emt 0:00:06]} 48. Kxh4 {[%emt
0:00:05]} Rxg2 {[%emt 0:00:01]} 49. Rxb5 {[%emt 0:00:01]} Kg7 {[%emt 0:00:01] 
(Lag: Av=0.58s, max=1.6s)} 1/2-1/2

[Event "Dutch Internet Championship Final"]
[Site "playchess.com #038132"]
[Date "2011.06.18"]
[Round "3.5"]
[White "Jan Smeets"]
[Black "Ivan Sokolov"]
[Result "1-0"]
[ECO "C69"]
[WhiteElo "2780"]
[BlackElo "2467"]
[PlyCount "87"]
[EventDate "2011.06.18"]
[EventType "match (blitz)"]
[TimeControl "180+3"]

1. e4 {[%emt 0:00:01]} e5 {[%emt 0:00:13]} 2. Nf3 {[%emt 0:00:02]} Nc6 {[%emt
0:00:03]} 3. Bb5 {[%emt 0:00:02]} a6 {[%emt 0:00:03]} 4. Bxc6 {[%emt 0:00:01]}
dxc6 {[%emt 0:00:02]} 5. O-O {[%emt 0:00:00]} f6 {[%emt 0:00:04]} 6. d4 {[%emt
0:00:01]} Bg4 {[%emt 0:00:02]} 7. dxe5 {[%emt 0:00:03]} Qxd1 {[%emt 0:00:02]}
8. Rxd1 {[%emt 0:00:01]} fxe5 {[%emt 0:00:01]} 9. Rd3 {[%emt 0:00:00]} Bd6 {
[%emt 0:00:02]} 10. Nbd2 {[%emt 0:00:08]} Nf6 {[%emt 0:00:05]} 11. b3 {[%emt 0:
00:02]} O-O-O {[%emt 0:00:06]} 12. Bb2 {[%emt 0:00:01]} Rhe8 {[%emt 0:00:03]}
13. Bc3 {[%emt 0:00:39]} Nh5 {[%emt 0:00:44]} 14. g3 {[%emt 0:00:19]} Nf6 {
[%emt 0:00:02]} 15. Kg2 {[%emt 0:00:02]} b5 {[%emt 0:00:17]} 16. Re1 {[%emt 0:
00:10]} c5 {[%emt 0:00:05]} 17. Bb2 {[%emt 0:00:23]} Bd7 {[%emt 0:00:03]} 18.
Ng1 {[%emt 0:00:52]} Bc6 {[%emt 0:00:05]} 19. f3 {[%emt 0:00:01]} g5 {[%emt 0:
00:28]} 20. h3 {[%emt 0:00:05]} h5 {[%emt 0:00:04]} 21. g4 {[%emt 0:00:01]} h4
{[%emt 0:00:19]} 22. Bc1 {[%emt 0:00:51]} Nh7 {[%emt 0:00:32] '} 23. Nf1 {
[%emt 0:00:08]} c4 {[%emt 0:00:02]} 24. bxc4 {[%emt 0:00:03]} bxc4 {[%emt 0:00:
01]} 25. Rdd1 {[%emt 0:00:04]} Bb4 {[%emt 0:00:06]} 26. Bd2 {[%emt 0:00:02]} c3
{[%emt 0:00:13]} 27. Bc1 {[%emt 0:00:03]} Ba4 {[%emt 0:00:05]} 28. Ne3 {[%emt
0:00:04]} Nf8 {[%emt 0:00:03]} 29. Rxd8+ {[%emt 0:00:06]} Rxd8 {[%emt 0:00:03]}
30. Nd5 {[%emt 0:00:01]} Ba5 {[%emt 0:00:29]} 31. Bxg5 {[%emt 0:00:01]} Rd7 {
[%emt 0:00:01]} 32. Ne2 {[%emt 0:00:15] .} Ne6 {[%emt 0:00:02]} 33. Bxh4 {
[%emt 0:00:04]} Bxc2 {[%emt 0:00:03]} 34. Rc1 {[%emt 0:00:03]} Nd4 {[%emt 0:00:
03]} 35. Nxd4 {[%emt 0:00:03]} exd4 {[%emt 0:00:01]} 36. Rxc2 {[%emt 0:00:01]}
Rxd5 {[%emt 0:00:02]} 37. exd5 {[%emt 0:00:03]} d3 {[%emt 0:00:01]} 38. Rxc3 {
[%emt 0:00:01]} Bxc3 {[%emt 0:00:01]} 39. Kf2 {[%emt 0:00:01]} Kd7 {[%emt 0:00:
03]} 40. Ke3 {[%emt 0:00:03]} d2 {[%emt 0:00:01]} 41. Ke2 {[%emt 0:00:00]} Kd6
{[%emt 0:00:01]} 42. Bg5 {[%emt 0:00:01]} Kxd5 {[%emt 0:00:01]} 43. Bxd2 {
[%emt 0:00:01]} Bf6 {[%emt 0:00:03]} 44. g5 {[%emt 0:00:01] Ivan Sokolov
resigns  (Lag: Av=0.39s, max=1.8s)} 1-0

[Event "Dutch Internet Championship Final"]
[Site "playchess.com #038132"]
[Date "2011.06.18"]
[Round "3.5"]
[White "kingloek"]
[Black "Christov"]
[Result "1-0"]
[ECO "D18"]
[WhiteElo "2879"]
[BlackElo "2519"]
[PlyCount "123"]
[EventDate "2011.06.18"]
[EventType "match (blitz)"]
[TimeControl "180+3"]

1. d4 {[%emt 0:00:01]} d5 {[%emt 0:00:02]} 2. c4 {[%emt 0:00:01]} c6 {[%emt 0:
00:01]} 3. Nf3 {[%emt 0:00:01]} Nf6 {[%emt 0:00:01]} 4. Nc3 {[%emt 0:00:01]}
dxc4 {[%emt 0:00:04]} 5. a4 {[%emt 0:00:01]} Bf5 {[%emt 0:00:01]} 6. e3 {[%emt
0:00:01]} e6 {[%emt 0:00:01]} 7. Bxc4 {[%emt 0:00:01]} Bb4 {[%emt 0:00:01]} 8.
O-O {[%emt 0:00:01]} O-O {[%emt 0:00:02]} 9. Nh4 {[%emt 0:00:02]} Bg6 {[%emt 0:
00:01]} 10. Nxg6 {[%emt 0:00:02]} hxg6 {[%emt 0:00:01]} 11. Qc2 {[%emt 0:00:01]
} Nbd7 {[%emt 0:00:03]} 12. Rd1 {[%emt 0:00:01]} Qe7 {[%emt 0:00:01]} 13. a5 {
[%emt 0:00:23]} Bd6 {[%emt 0:00:11]} 14. h3 {[%emt 0:00:04]} b5 {[%emt 0:00:18]
} 15. Be2 {[%emt 0:00:18]} a6 {[%emt 0:00:04]} 16. e4 {[%emt 0:00:34]} e5 {
[%emt 0:00:02]} 17. dxe5 {[%emt 0:00:06]} Bxe5 {[%emt 0:00:01]} 18. Bf3 {[%emt
0:00:35]} Nc5 {[%emt 0:00:04]} 19. Be3 {[%emt 0:00:21]} Rac8 {[%emt 0:00:18]}
20. Rac1 {[%emt 0:00:19]} b4 {[%emt 0:00:19]} 21. Bxc5 {[%emt 0:00:29]} Qxc5 {
[%emt 0:00:03]} 22. Nd5 {[%emt 0:00:01]} Qxc2 {[%emt 0:00:12]} 23. Ne7+ {[%emt
0:00:01]} Kh7 {[%emt 0:00:02]} 24. Rxc2 {[%emt 0:00:00]} Rc7 {[%emt 0:00:05]}
25. Nxc6 {[%emt 0:00:05]} Rfc8 {[%emt 0:00:02]} 26. Rdc1 {[%emt 0:00:15]} b3 {
[%emt 0:00:17]} 27. Rc4 {[%emt 0:00:02]} Bxb2 {[%emt 0:00:02]} 28. Rb1 {[%emt
0:00:01]} Rxc6 {[%emt 0:00:22]} 29. Rxc6 {[%emt 0:00:02]} Rxc6 {[%emt 0:00:00]}
30. Rxb2 {[%emt 0:00:01]} Rc3 {[%emt 0:00:08]} 31. e5 {[%emt 0:00:01]} Nd7 {
[%emt 0:00:04]} 32. Bd5 {[%emt 0:00:01]} Nc5 {[%emt 0:00:22]} 33. Bxf7 {[%emt
0:00:01]} Rc2 {[%emt 0:00:01]} 34. Rb1 {[%emt 0:00:04]} b2 {[%emt 0:00:02]} 35.
Kh2 {[%emt 0:00:18]} Nd3 {[%emt 0:00:11]} 36. e6 {[%emt 0:00:04]} Re2 {[%emt 0:
00:08]} 37. e7 {[%emt 0:00:05]} Rxe7 {[%emt 0:00:21]} 38. Bc4 {[%emt 0:00:01]}
Ne5 {[%emt 0:00:32] '} 39. Bxa6 {[%emt 0:00:05]} Ra7 {[%emt 0:00:01]} 40. Be2 {
[%emt 0:00:03]} Rxa5 {[%emt 0:00:01]} 41. Rxb2 {[%emt 0:00:02]} g5 {[%emt 0:00:
02]} 42. Rb4 {[%emt 0:00:05]} Rc5 {[%emt 0:00:01]} 43. Re4 {[%emt 0:00:02]} g6
{[%emt 0:00:02]} 44. g3 {[%emt 0:00:02]} Kg7 {[%emt 0:00:01]} 45. Kg2 {[%emt 0:
00:01]} Kf6 {[%emt 0:00:01]} 46. Rd4 {[%emt 0:00:01]} Rc2 {[%emt 0:00:02]} 47.
Bd1 {[%emt 0:00:03]} Rb2 {[%emt 0:00:03]} 48. Rd6+ {[%emt 0:00:04]} Ke7 {[%emt
0:00:04]} 49. Rd4 {[%emt 0:00:04]} Kf6 {[%emt 0:00:03]} 50. Kf1 {[%emt 0:00:04]
} Rb1 {[%emt 0:00:06]} 51. Ke2 {[%emt 0:00:06]} Rb2+ {[%emt 0:00:01]} 52. Ke3 {
[%emt 0:00:01]} Rb7 {[%emt 0:00:15]} 53. Ke4 {[%emt 0:00:07]} Re7 {[%emt 0:00:
02]} 54. Rd6+ {[%emt 0:00:02]} Kg7 {[%emt 0:00:01]} 55. Kd4 {[%emt 0:00:03]}
Nf7 {[%emt 0:00:04]} 56. Rd5 {[%emt 0:00:04]} Re1 {[%emt 0:00:03]} 57. Bb3 {
[%emt 0:00:03]} Kf6 {[%emt 0:00:11]} 58. Ra5 {[%emt 0:00:04]} Nh6 {[%emt 0:00:
08]} 59. Ra6+ {[%emt 0:00:04]} Kg7 {[%emt 0:00:01]} 60. g4 {[%emt 0:00:05]} Ng8
{[%emt 0:00:09]} 61. Bxg8 {[%emt 0:00:03]} Rd1+ {[%emt 0:00:03]} 62. Ke3 {
[%emt 0:00:03] Christov geeft op  (Lag: Av=0.76s, max=7.2s)} 1-0

[Event "Dutch Internet Championship Final"]
[Site "playchess.com #038132"]
[Date "2011.06.18"]
[Round "3.6"]
[White "Ivan Sokolov"]
[Black "Jan Smeets"]
[Result "0-1"]
[ECO "E04"]
[WhiteElo "2462"]
[BlackElo "2784"]
[PlyCount "60"]
[EventDate "2011.06.18"]
[EventType "match (blitz)"]
[TimeControl "180+3"]

1. d4 {[%emt 0:00:01]} d5 {[%emt 0:00:02]} 2. c4 {[%emt 0:00:00]} c6 {[%emt 0:
00:01]} 3. Nc3 {[%emt 0:00:00]} Nf6 {[%emt 0:00:00]} 4. Nf3 {[%emt 0:00:00]} e6
{[%emt 0:00:00]} 5. g3 {[%emt 0:00:01]} dxc4 {[%emt 0:00:05]} 6. Bg2 {[%emt 0:
00:01]} b5 {[%emt 0:00:10]} 7. O-O {[%emt 0:00:03]} Bb7 {[%emt 0:00:02]} 8. e4
{[%emt 0:00:07]} Nbd7 {[%emt 0:00:10]} 9. Re1 {[%emt 0:00:23]} Be7 {[%emt 0:00:
02]} 10. Qc2 {[%emt 0:00:09]} O-O {[%emt 0:00:10]} 11. h4 {[%emt 0:00:01]} h6 {
[%emt 0:00:04]} 12. Bf4 {[%emt 0:00:01]} a6 {[%emt 0:00:04]} 13. Rad1 {[%emt 0:
00:01]} Re8 {[%emt 0:00:13]} 14. Bh3 {[%emt 0:00:11]} Qb6 {[%emt 0:00:20]} 15.
g4 {[%emt 0:00:02]} c5 {[%emt 0:00:06]} 16. g5 {[%emt 0:00:05]} hxg5 {[%emt 0:
00:26]} 17. hxg5 {[%emt 0:00:02]} Nh5 {[%emt 0:00:01]} 18. Be3 {[%emt 0:00:01]}
cxd4 {[%emt 0:00:06]} 19. Rxd4 {[%emt 0:00:02]} Qc7 {[%emt 0:00:26]} 20. g6 {
[%emt 0:00:09]} Ne5 {[%emt 0:00:17]} 21. gxf7+ {[%emt 0:00:10]} Kxf7 {[%emt 0:
00:02]} 22. Nxe5+ {[%emt 0:00:18]} Qxe5 {[%emt 0:00:02]} 23. f4 {[%emt 0:00:36]
} Nxf4 {[%emt 0:00:10]} 24. Rf1 {[%emt 0:00:07]} g5 {[%emt 0:00:03]} 25. Ne2 {
[%emt 0:00:05]} Bc5 {[%emt 0:00:14]} 26. Nxf4 {[%emt 0:01:25] .} gxf4 {[%emt 0:
00:03]} 27. Rxf4+ {[%emt 0:00:01]} Ke7 {[%emt 0:00:20]} 28. Qf2 {[%emt 0:00:14]
} Rg8+ {[%emt 0:00:24] '} 29. Kf1 {[%emt 0:00:02]} Qh5 {[%emt 0:00:01]} 30. Rd5
{[%emt 0:00:07]} Qxh3+ {[%emt 0:00:10] Time  (Lag: Av=0.52s, max=1.4s)} 0-1